fUST/lending_fUST_20240516
["ID","MTS","AMOUNT","RATE_DAILY","PERIOD"]
[327093285,1715807444806,-227.534122,0.00020362,2]
[327093286,1715807444815,-721.204288,0.00020362,2]
[327093287,1715807444825,-721.204288,0.00020362,2]
[327093288,1715807444835,-721.204288,0.00020362,2]
[327093289,1715807444844,-721.204288,0.00020362,2]
[327093290,1715807444854,-422.733621,0.00020362,2]
[327093291,1715807444863,-422.733621,0.00020362,2]
[327093292,1715807444873,-422.733621,0.00020362,2]
[327093293,1715807444882,-422.733621,0.00020362,2]
[327093294,1715807444892,-151.0,0.00020362,2]
[327093295,1715807444902,-151.0,0.00020362,2]
[327093296,1715807444911,-151.0,0.00020362,2]
[327093297,1715807444920,-151.0,0.00020362,2]
[327093298,1715807444929,-151.0,0.00020362,2]
[327093299,1715807444939,-151.0,0.00020362,2]
[327093300,1715807444949,-1543.06822,0.00020362,2]
[327093301,1715807444958,-1543.06822,0.00020362,2]
[327093302,1715807444968,-1543.06822,0.00020362,2]
[327093303,1715807444977,-1543.06822,0.00020362,2]
[327093304,1715807444987,-593.67112,0.00020362,2]
[327093305,1715807444996,-593.67112,0.00020362,2]
[327093306,1715807445006,-593.67112,0.00020362,2]
[327093307,1715807445016,-593.67112,0.00020362,2]
[327093308,1715807445026,-152.592444,0.00020362,2]
[327093309,1715807445036,-151.0,0.00020362,2]
[327093310,1715807445047,-151.0,0.00020362,2]
[327093311,1715807445057,-1082.791466,0.00020362,2]
[327093312,1715807445067,-151.0,0.00020362,2]
[327093313,1715807445078,-605.02197,0.00020362,2]
[327093314,1715807445087,-1082.791466,0.00020362,2]
[327093315,1715807445098,-605.02197,0.00020362,2]
[327093316,1715807445107,-150.0,0.00020363,2]
[327093317,1715807445116,-150.0,0.00020363,2]
[327093318,1715807445126,-495.0,0.00020363,2]
[327093319,1715807445135,-151.152,0.00020363,2]
[327093320,1715807445145,-1176.836821,0.00020363,2]
[327093321,1715807445154,-1176.836821,0.00020363,2]
[327093322,1715807445163,-1176.836821,0.00020363,2]
[327093323,1715807445172,-1176.836821,0.00020363,2]
[327093324,1715807445181,-1176.836821,0.00020363,2]
[327093325,1715807445191,-1176.836821,0.00020363,2]
[327093326,1715807445200,-414.6605,0.00020363,2]
[327093327,1715807445209,-414.6605,0.00020363,2]
[327093328,1715807445218,-414.6605,0.00020363,2]
[327093329,1715807445228,-414.6605,0.00020363,2]
[327093330,1715807445237,-414.6605,0.00020363,2]
[327093331,1715807445246,-414.6605,0.00020363,2]
[327093332,1715807445256,-246.271179,0.00020363,2]
[327093333,1715807445265,-246.271179,0.00020363,2]
[327093334,1715807445275,-246.271179,0.00020363,2]
[327093335,1715807445284,-246.271179,0.00020363,2]
[327093336,1715807445294,-246.271179,0.00020363,2]
[327093337,1715807445303,-246.271179,0.00020363,2]
[327093338,1715807445312,-151.0,0.00020363,2]
[327093339,1715807445322,-151.0,0.00020363,2]
[327093340,1715807445337,-151.0,0.00020363,2]
[327093341,1715807445347,-681.08916,0.00020363,2]
[327093342,1715807445356,-681.08916,0.00020363,2]
[327093343,1715807445365,-681.08916,0.00020363,2]
[327093344,1715807445376,-681.08916,0.00020363,2]
[327093345,1715807445386,-681.08916,0.00020363,2]
[327093346,1715807445395,-681.08916,0.00020363,2]
[327093347,1715807445406,-151.0,0.00020363,2]
[327093348,1715807445415,-151.0,0.00020363,2]
[327093349,1715807445425,-151.0,0.00020363,2]
[327093350,1715807445437,-151.0,0.00020363,2]
[327093351,1715807445448,-151.0,0.00020363,2]
[327093352,1715807445458,-151.0,0.00020363,2]
[327093353,1715807445468,-151.0,0.00020363,2]
[327093354,1715807445478,-176.347502,0.00020363,2]
[327093355,1715807445635,-176.347502,0.00020363,2]
[327093356,1715807445646,-176.347502,0.00020363,2]
[327093357,1715807445656,-176.347502,0.00020363,2]
[327093358,1715807445665,-176.347502,0.00020363,2]
[327093359,1715807445674,-176.347502,0.00020363,2]
[327093360,1715807445684,-4914.419288,0.00020363,2]
[327093361,1715807445693,-4914.419288,0.00020363,2]
[327093363,1715807445703,-4914.419288,0.00020363,2]
[327093364,1715807445713,-4914.419288,0.00020363,2]
[327093365,1715807445722,-4914.419288,0.00020363,2]
[327093366,1715807445733,-1774.03523315,0.00020363,2]
[327093367,1715807445749,-3140.38405485,0.00020363,2]
[327093368,1715807445758,-151.0,0.00020363,2]
[327093369,1715807445768,-151.0,0.00020363,2]
[327093370,1715807445777,-151.0,0.00020363,2]
[327093371,1715807445787,-171.248297,0.00020363,2]
[327093372,1715807445796,-171.248297,0.00020363,2]
[327093374,1715807445805,-171.248297,0.00020363,2]
[327093376,1715807445815,-185.244171,0.00020363,2]
[327093377,1715807445824,-185.244171,0.00020363,2]
[327093378,1715807445833,-185.244171,0.00020363,2]
[327093379,1715807445842,-171.248297,0.00020363,2]
[327093380,1715807445851,-171.248297,0.00020363,2]
[327093382,1715807445860,-171.248297,0.00020363,2]
[327093384,1715807445870,-185.244171,0.00020363,2]
[327093386,1715807445879,-185.244171,0.00020363,2]
[327093388,1715807445889,-185.244171,0.00020363,2]
[327093390,1715807445899,-271.31,0.00020363,2]
[327093393,1715807445908,-227.534122,0.00020363,2]
[327093395,1715807445917,-227.534122,0.00020363,2]
[327093397,1715807445926,-124.84600171,0.00020363,2]
[327093878,1715808429155,-453.28439358,0.000189,2]
[327093879,1715808429175,-198.6000127,0.00019035,2]
[327093880,1715808429193,-182.087703,0.00019178,2]
[327093881,1715808429213,-620.24523714,0.00019618,2]
[327093882,1715808429234,-150.0,0.00019896,2]
[327093883,1715808429253,-966.0,0.000199,2]
[327093884,1715808429274,-204.1985749,0.000199,2]
[327093885,1715808429294,-204.2613691,0.0002,2]
[327093886,1715808429313,-204.2613691,0.0002,2]
[327093887,1715808429333,-204.2613691,0.0002,2]
[327093888,1715808429352,-204.2613691,0.0002,2]
[327093889,1715808429372,-959.87973816,0.0002,2]
[327093933,1715808634084,-302.18959572,0.000189,2]
[327093935,1715808634095,-595.4,0.00019899,2]
[327093937,1715808634104,-5694.08830428,0.0002,2]
[327094617,1715808641983,-150.0,0.00019899,2]
[327094619,1715808641993,-1000.000001,0.0002,2]
[327096898,1715809834013,-201.45973048,0.000189,2]
[327096900,1715809834024,-182.087703,0.00019178,2]
[327096902,1715809834034,-3935.00798279,0.00019766,2]
[327096904,1715809834043,-491.5,0.00019774,2]
[327096906,1715809834053,-397.0917801,0.000199,2]
[327096908,1715809834063,-265.24374591,0.00019915,2]
[327096910,1715809834072,-150.0,0.00019953,2]
[327096912,1715809834081,-1011.76124363,0.00019998,3]
[327096914,1715809834094,-11348.07796826,0.00019998,3]
[327096917,1715809834103,-8144.76740262,0.00019999,2]
[327096919,1715809834113,-5049.03195656,0.0002,2]
[327096921,1715809834128,-7962.61734382,0.0002,2]
[327096923,1715809834137,-159.2224157,0.0002,2]
[327096925,1715809834147,-192.45,0.0002,2]
[327096927,1715809834157,-590.0,0.000201,2]
[327096929,1715809834166,-150.0,0.0002013,2]
[327096931,1715809834176,-212.4367424,0.00020159,2]
[327096933,1715809834185,-491.5,0.00020199,2]
[327096935,1715809834196,-331.57561593,0.00020208,2]
[327096989,1715809839262,-150.0,0.00019774,2]
[327096991,1715809839271,-150.0,0.00020199,2]
[327096993,1715809839281,-163.42438407,0.00020208,2]
[327096995,1715809839290,-150.0,0.00020208,2]
[327096997,1715809839300,-281.0,0.000203,2]
[327096999,1715809839309,-401.67561593,0.00020361,2]
[327097001,1715809839322,-1482.84298285,0.00020361,2]
[327097003,1715809839331,-685.06183279,0.00020362,2]
[327097005,1715809839341,-11019.59518436,0.00020362,2]
[327097748,1715809846997,-329.86,0.00020362,2]
[327099164,1715809897867,252.815691,0.00015,2]
[327099165,1715809897895,895.69479166,0.00015,2]
[327099169,1715810360487,309.504804,0.0001,2]
[327099170,1715810506370,1148.51048266,0.00015,2]
[327099171,1715810697423,21724.013417,0.00017786,2]
[327099177,1715811025503,241.34575542,0.00014106,2]
[327099178,1715811025527,269.4510352,0.00014106,2]
[327099179,1715811025549,252.815691,0.00014106,2]
[327099180,1715811025580,1416.41964452,0.00014106,2]
[327099201,1715811032164,-1884.51859878,0.00018715,2]
[327099202,1715811032175,-4651.1951904,0.00018716,2]
[327099203,1715811032184,-174.58151056,0.0001872,2]
[327099204,1715811032194,-259.87342044,0.00018808,2]
[327099205,1715811032203,-1053.26184066,0.00018809,2]
[327099206,1715811032374,-104269.79638828,0.0001881,2]
[327099207,1715811032394,-583.44842813,0.0001882,2]
[327099208,1715811032404,-1230.24965956,0.000189,2]
[327099209,1715811032413,-500.0,0.00019178,2]
[327099210,1715811032423,-190.59169872,0.00019178,2]
[327099211,1715811032432,-500.0,0.00019178,2]
[327099212,1715811032442,-500.0,0.00019178,2]
[327099213,1715811032451,-500.0,0.00019178,2]
[327099214,1715811032461,-500.0,0.00019178,2]
[327099215,1715811032470,-500.0,0.00019178,2]
[327099216,1715811032480,-500.0,0.00019178,2]
[327099217,1715811032490,-500.0,0.00019178,2]
[327099218,1715811032500,-595.08876908,0.00019178,2]
[327099219,1715811032513,-500.0,0.00019178,2]
[327099220,1715811032523,-500.0,0.00019178,2]
[327099221,1715811032533,-500.0,0.00019178,2]
[327099222,1715811032543,-500.0,0.00019178,2]
[327099223,1715811032553,-500.0,0.00019178,2]
[327099224,1715811032562,-500.0,0.00019178,2]
[327099225,1715811032572,-500.0,0.00019178,2]
[327099226,1715811032582,-500.0,0.00019178,2]
[327099227,1715811032592,-500.0,0.00019178,2]
[327099228,1715811032602,-500.0,0.00019178,2]
[327099229,1715811032612,-500.0,0.00019178,2]
[327099230,1715811032622,-500.0,0.00019178,2]
[327099231,1715811032631,-176.538647,0.00019178,2]
[327099232,1715811032640,-3343.90529574,0.00019178,2]
[327099233,1715811032649,-174.58151055,0.00019243,2]
[327099234,1715811032659,-620.01226186,0.00019569,2]
[327099235,1715811032668,-554.9,0.00019764,2]
[327099236,1715811032678,-150.0,0.00019765,2]
[327099237,1715811032687,-377.1931229,0.00019766,2]
[327099238,1715811032697,-174.58151055,0.00019767,2]
[327099239,1715811032707,-526.72631451,0.00019999,2]
[327099240,1715811032716,-463.15490946,0.00019999,2]
[327099241,1715811032727,-7962.61734382,0.0002,2]
[327099242,1715811032737,-12703.0,0.0002,2]
[327099243,1715811032748,-9070.40315154,0.0002,2]
[327099244,1715811032757,-3127.02544204,0.0002,2]
[327099245,1715811032767,-151.33355125,0.0002,2]
[327099246,1715811032776,-554.9,0.0002019,2]
[327099247,1715811032785,-150.0,0.00020191,2]
[327099248,1715811032795,-573.0,0.000202,2]
[327099249,1715811032804,-150.0,0.00020244,2]
[327099250,1715811032813,-495.0,0.00020244,2]
[327099251,1715811032823,-150.0,0.00020244,2]
[327099252,1715811032832,-150.0,0.0002025,2]
[327099253,1715811032841,-174.58151055,0.0002029,2]
[327099254,1715811032851,-281.0,0.000203,2]
[327099255,1715811032860,-1999.31154167,0.00020363,2]
[327099317,1715811038373,-150.0,0.00019764,2]
[327099319,1715811038382,-108.75359852,0.0002019,2]
[327099636,1715811041530,1135.79673772,0.00014106,2]
[327100392,1715811059551,1135.79673772,0.00015608,2]
[327100393,1715811075541,1135.79673772,0.00015608,2]
[327100394,1715811093728,1135.79673772,0.00015608,2]
[327100395,1715811109537,1135.79673772,0.00015608,2]
[327100396,1715811132885,1135.79673772,0.00015608,2]
[327100397,1715811148913,1135.79673772,0.00015608,2]
[327100398,1715811155219,384.22515753,9.999e-05,2]
[327100399,1715811174883,1135.79673772,0.00015608,2]
[327100400,1715811194880,1135.79673772,0.00015608,2]
[327100401,1715811234969,1135.79673772,0.00015608,2]
[327100402,1715811268973,734.0535715,0.00015608,2]
[327100404,1715811734380,1884.51859878,9.999e-05,2]
[327100407,1715811796155,384.22515753,9.999e-05,2]
[327100408,1715811813697,478.0,0.000266,120]
[327100409,1715811942065,295.112965,0.00017822,2]
[327100410,1715811968709,5389.75,0.00018001,2]
[327100411,1715812190052,218.2282606,0.00017771,2]
[327100455,1715812233721,-384.22515753,0.00018689,2]
[327100457,1715812233730,-2677.50168314,0.0001869,2]
[327100458,1715812233739,-487.65526819,0.00018698,2]
[327100460,1715812233749,-20235.96598836,0.00018795,2]
[327100462,1715812233759,-9516.04302491,0.00018796,2]
[327100464,1715812233768,-2237.32992472,0.00018899,2]
[327100466,1715812233777,-1135.12973489,0.000189,2]
[327100468,1715812233786,-182.087703,0.00019178,2]
[327100470,1715812233795,-175.584942,0.00019178,2]
[327100472,1715812233807,-525.7,0.00019741,2]
[327100474,1715812233816,-487.65526816,0.0001977,2]
[327100476,1715812233825,-164.10093993,0.000199,2]
[327100478,1715812233834,-251.46208194,0.000199,2]
[327100480,1715812233843,-870.7,0.0001999,3]
[327100482,1715812233852,-251.46208193,0.00019995,2]
[327100484,1715812233867,-702.19428712,0.00019998,2]
[327100486,1715812233876,-321.11529557,0.00019999,2]
[327100488,1715812233885,-500.0,0.00019999,2]
[327100490,1715812233894,-500.0,0.00019999,2]
[327100492,1715812233904,-500.0,0.00019999,2]
[327100494,1715812233914,-415.47714453,0.00019999,2]
[327100496,1715812233923,-500.0,0.00019999,2]
[327100498,1715812233932,-500.0,0.00019999,2]
[327100500,1715812233944,-500.0,0.00019999,2]
[327100502,1715812233954,-500.0,0.00019999,2]
[327100504,1715812233963,-500.0,0.00019999,2]
[327100506,1715812233973,-500.0,0.00019999,2]
[327100508,1715812233982,-500.0,0.00019999,2]
[327100510,1715812233991,-500.0,0.00019999,2]
[327100512,1715812234000,-543.70867113,0.0002,2]
[327100514,1715812234010,-12703.0,0.0002,2]
[327100516,1715812234019,-32102.34484242,0.0002,2]
[327100519,1715812234032,-612.0,0.0002,2]
[327100831,1715812240555,-150.0,0.00019741,2]
[327100833,1715812240566,-850.0,0.0002,2]
[327100960,1715812243448,-34430.48814455,0.0002,2]
[327100962,1715812243458,-7962.61734382,0.0002,2]
[327100964,1715812243467,-229.94025,0.00020071,2]
[327100966,1715812243477,-151.0,0.00020071,2]
[327100968,1715812243486,-3904.564705,0.00020071,2]
[327100970,1715812243495,-3904.564705,0.00020071,2]
[327100972,1715812243505,-982.883857,0.00020071,2]
[327100974,1715812243514,-982.883857,0.00020071,2]
[327100976,1715812243523,-221.675237,0.00020071,2]
[327100978,1715812243532,-221.675237,0.00020071,2]
[327100980,1715812243542,-544.519773,0.00020071,2]
[327100982,1715812243551,-544.519773,0.00020071,2]
[327100984,1715812243564,-151.0,0.00020071,2]
[327100986,1715812243574,-251.46208193,0.0002009,2]
[327100988,1715812243583,-225.73984907,0.00020094,2]
[327100990,1715812243592,-500.0,0.00020094,2]
[327100992,1715812243602,-204.326748,0.00020095,2]
[327100994,1715812243611,-204.326748,0.00020095,2]
[327100996,1715812243620,-588.418411,0.00020095,2]
[327100998,1715812243629,-588.418411,0.00020095,2]
[327101000,1715812243638,-151.0,0.00020095,2]
[327101002,1715812243647,-151.0,0.00020095,2]
[327101004,1715812243656,-151.0,0.00020095,2]
[327101006,1715812243665,-151.0,0.00020095,2]
[327101008,1715812243675,-974.512319,0.00020095,2]
[327101010,1715812243684,-974.512319,0.00020095,2]
[327101012,1715812243694,-151.0,0.00020095,2]
[327101014,1715812243703,-151.0,0.00020095,2]
[327101016,1715812243712,-360.602144,0.00020095,2]
[327101018,1715812243724,-211.366811,0.00020095,2]
[327101020,1715812243733,-360.602144,0.00020095,2]
[327101022,1715812243742,-211.366811,0.00020095,2]
[327101024,1715812243751,-151.0,0.00020095,2]
[327101026,1715812243760,-151.0,0.00020095,2]
[327101028,1715812243769,-151.0,0.00020095,2]
[327101030,1715812243778,-151.0,0.00020095,2]
[327101032,1715812243787,-771.53411,0.00020095,2]
[327101034,1715812243796,-771.53411,0.00020095,2]
[327101036,1715812243808,-296.83556,0.00020095,2]
[327101037,1715812243817,-296.83556,0.00020095,2]
[327101040,1715812243826,-151.0,0.00020095,2]
[327101041,1715812243835,-3904.564705,0.00020095,2]
[327101043,1715812243844,-3904.564705,0.00020095,2]
[327101045,1715812243854,-982.883857,0.00020095,2]
[327101047,1715812243865,-982.883857,0.00020095,2]
[327101049,1715812243875,-221.675237,0.00020095,2]
[327101052,1715812243884,-221.675237,0.00020095,2]
[327101054,1715812243893,-544.519773,0.00020095,2]
[327101056,1715812243903,-544.519773,0.00020095,2]
[327101058,1715812243914,-544.519773,0.00020095,2]
[327101060,1715812243923,-544.519773,0.00020095,2]
[327101062,1715812243932,-151.0,0.00020095,2]
[327101063,1715812243943,-151.0,0.00020095,2]
[327101065,1715812243952,-150.0,0.00020106,2]
[327101068,1715812243962,-289.44506153,0.00020159,2]
[327101069,1715812243971,-525.7,0.00020169,2]
[327101072,1715812243980,-150.0,0.00020169,2]
[327101074,1715812243990,-8561.05700889,0.0002019,3]
[327101076,1715812243999,-7125.38214958,0.0002019,2]
[327101077,1715812244008,-151.0,0.0002019,2]
[327101079,1715812244018,-151.0,0.0002019,2]
[327101081,1715812244027,-151.0,0.0002019,2]
[327101083,1715812244036,-151.0,0.0002019,2]
[327101085,1715812244046,-974.512319,0.0002019,2]
[327101087,1715812244057,-974.512319,0.0002019,2]
[327101089,1715812244066,-151.0,0.0002019,2]
[327101091,1715812244075,-151.0,0.0002019,2]
[327101094,1715812244084,-360.602144,0.0002019,2]
[327101096,1715812244095,-211.366811,0.0002019,2]
[327101098,1715812244104,-360.602144,0.0002019,2]
[327101100,1715812244113,-211.366811,0.0002019,2]
[327101102,1715812244123,-151.0,0.0002019,2]
[327101104,1715812244132,-151.0,0.0002019,2]
[327101106,1715812244142,-151.0,0.0002019,2]
[327101108,1715812244151,-771.53411,0.0002019,2]
[327101110,1715812244160,-771.53411,0.0002019,2]
[327101112,1715812244170,-296.83556,0.0002019,2]
[327101114,1715812244179,-296.83556,0.0002019,2]
[327101116,1715812244188,-151.0,0.0002019,2]
[327101118,1715812244197,-3904.564705,0.0002019,2]
[327101120,1715812244206,-3904.564705,0.0002019,2]
[327101122,1715812244215,-982.883857,0.0002019,2]
[327101124,1715812244226,-982.883857,0.0002019,2]
[327101126,1715812244235,-221.675237,0.0002019,2]
[327101128,1715812244244,-221.675237,0.0002019,2]
[327101130,1715812244253,-544.519773,0.0002019,2]
[327101132,1715812244263,-544.519773,0.0002019,2]
[327101134,1715812244271,-544.519773,0.0002019,2]
[327101136,1715812244280,-544.519773,0.0002019,2]
[327101138,1715812244289,-151.0,0.0002019,2]
[327101140,1715812244298,-151.0,0.0002019,2]
[327101142,1715812244309,-3935.00798279,0.00020209,2]
[327101144,1715812244318,-495.0,0.0002028,2]
[327101146,1715812244327,-281.0,0.000203,2]
[327101148,1715812244336,-151.0,0.000203,2]
[327101150,1715812244345,-1003.204093,0.000203,2]
[327101152,1715812244354,-164.10093992,0.00020305,2]
[327101154,1715812244363,-18250.84797801,0.00020358,3]
[327101156,1715812244373,-1003.61930091,0.00020358,2]
[327101158,1715812244382,-1000.0,0.00020359,2]
[327101160,1715812244392,-151.0,0.00020359,2]
[327101162,1715812244402,-3904.564705,0.00020359,2]
[327101164,1715812244411,-982.883857,0.00020359,2]
[327101166,1715812244420,-3904.564705,0.00020359,2]
[327101168,1715812244429,-982.883857,0.00020359,2]
[327101170,1715812244438,-221.675237,0.00020359,2]
[327101172,1715812244447,-221.675237,0.00020359,2]
[327101174,1715812244456,-544.519773,0.00020359,2]
[327101176,1715812244465,-544.519773,0.00020359,2]
[327101178,1715812244474,-151.0,0.00020359,2]
[327101180,1715812244484,-502.0,0.000204,2]
[327101182,1715812244493,-1629.70317767,0.000205,2]
[327101184,1715812244502,-204.326748,0.000205,2]
[327101186,1715812244511,-204.326748,0.000205,2]
[327101188,1715812244521,-588.418411,0.000205,2]
[327101190,1715812244530,-588.418411,0.000205,2]
[327101191,1715812244539,-151.0,0.000205,2]
[327101194,1715812244548,-217.928885,0.000205,2]
[327101196,1715812244559,-151.0,0.000205,2]
[327101198,1715812244568,-151.0,0.000205,2]
[327101200,1715812244577,-974.512319,0.000205,2]
[327101202,1715812244587,-974.512319,0.000205,2]
[327101204,1715812244597,-151.0,0.000205,2]
[327101205,1715812244606,-151.0,0.000205,2]
[327101208,1715812244616,-360.602144,0.000205,2]
[327101210,1715812244625,-360.602144,0.000205,2]
[327101211,1715812244636,-211.366811,0.000205,2]
[327101213,1715812244647,-360.602144,0.000205,2]
[327101215,1715812244656,-211.366811,0.000205,2]
[327101217,1715812244665,-360.602144,0.000205,2]
[327101218,1715812244675,-211.366811,0.000205,2]
[327101220,1715812244684,-211.366811,0.000205,2]
[327101222,1715812244693,-151.0,0.000205,2]
[327101224,1715812244703,-151.0,0.000205,2]
[327101225,1715812244712,-151.0,0.000205,2]
[327101227,1715812244722,-287.976679,0.000205,2]
[327101229,1715812244732,-151.0,0.000205,2]
[327101231,1715812244741,-151.0,0.000205,2]
[327101232,1715812244750,-771.53411,0.000205,2]
[327101234,1715812244759,-771.53411,0.000205,2]
[327101236,1715812244769,-771.53411,0.000205,2]
[327101238,1715812244779,-771.53411,0.000205,2]
[327101240,1715812244789,-296.83556,0.000205,2]
[327101241,1715812244798,-296.83556,0.000205,2]
[327101243,1715812244808,-296.83556,0.000205,2]
[327101245,1715812244817,-296.83556,0.000205,2]
[327101247,1715812244827,-151.0,0.000205,2]
[327101249,1715812244836,-151.585567,0.000205,2]
[327101251,1715812244845,-3904.564705,0.000205,2]
[327101252,1715812244854,-3904.564705,0.000205,2]
[327101254,1715812244868,-982.883857,0.000205,2]
[327101256,1715812244877,-3904.564705,0.000205,2]
[327101258,1715812244887,-3904.564705,0.000205,2]
[327101260,1715812244896,-982.883857,0.000205,2]
[327101261,1715812244907,-982.883857,0.000205,2]
[327101263,1715812244916,-982.883857,0.000205,2]
[327101265,1715812244925,-221.675237,0.000205,2]
[327101267,1715812244934,-221.675237,0.000205,2]
[327101268,1715812244945,-221.675237,0.000205,2]
[327101270,1715812244955,-221.675237,0.000205,2]
[327101272,1715812244964,-544.519773,0.000205,2]
[327101274,1715812244974,-544.519773,0.000205,2]
[327101275,1715812244983,-544.519773,0.000205,2]
[327101277,1715812244992,-544.519773,0.000205,2]
[327101279,1715812245002,-544.519773,0.000205,2]
[327101281,1715812245011,-544.519773,0.000205,2]
[327101283,1715812245020,-151.77284,0.000205,2]
[327101284,1715812245029,-620.00061309,0.00020548,2]
[327101286,1715812245039,-525.7,0.00020598,2]
[327101288,1715812245048,-150.0,0.00020598,2]
[327101301,1715812245187,-3615.35361349,0.0002066,7]
[327101303,1715812245197,-231.993183,0.0002066,2]
[327101305,1715812245207,-974.512319,0.0002066,2]
[327101307,1715812245216,-974.512319,0.0002066,2]
[327101309,1715812245225,-151.0,0.0002066,2]
[327101311,1715812245234,-238.058354,0.0002066,2]
[327101312,1715812245243,-3904.564705,0.0002066,2]
[327101314,1715812245253,-3904.564705,0.0002066,2]
[327101316,1715812245262,-982.883857,0.0002066,2]
[327101318,1715812245272,-982.883857,0.0002066,2]
[327101320,1715812245280,-221.675237,0.0002066,2]
[327101322,1715812245290,-221.675237,0.0002066,2]
[327101324,1715812245299,-544.519773,0.0002066,2]
[327101325,1715812245309,-544.519777,0.0002066,2]
[327101327,1715812245318,-155.8530685,0.0002069,2]
[327101329,1715812245327,-164.10093992,0.00020709,2]
[327101331,1715812245337,-88888.0,0.0002071,3]
[327101333,1715812245346,-1428.13425117,0.00020808,2]
[327101335,1715812245355,-194.76549096,0.00020808,2]
[327101337,1715812245364,-1406.86306644,0.00020808,2]
[327101339,1715812245374,-1199.54048252,0.00020808,2]
[327101340,1715812245383,-189.57956083,0.00020809,2]
[327101342,1715812245393,-174.02348586,0.00020809,4]
[327101344,1715812245403,-163.82516938,0.00020809,2]
[327101346,1715812245412,-154.82968734,0.00020809,2]
[327101348,1715812245421,-260.98401074,0.00020809,2]
[327101349,1715812245430,-204.94636995,0.00020809,2]
[327101351,1715812245440,-804.36147874,0.00020809,2]
[327101353,1715812245449,-294.51792014,0.00020809,2]
[327101355,1715812245458,-1895.4873316,0.00020809,2]
[327101357,1715812245468,-236.41159802,0.00020809,2]
[327101359,1715812245477,-154.9543866,0.00020809,2]
[327101360,1715812245487,-187.97493332,0.00020809,2]
[327101362,1715812245496,-2398.82924555,0.00020809,2]
[327101364,1715812245506,-189.56884564,0.00020809,2]
[327101366,1715812245515,-380.53498249,0.00020809,2]
[327101368,1715812245524,-154.82968734,0.00020809,2]
[327101370,1715812245535,-166.7051548,0.00020809,2]
[327101372,1715812245544,-301.80187457,0.00020809,2]
[327101373,1715812245553,-1041.48198831,0.00020809,2]
[327101375,1715812245564,-409.23025382,0.00020809,2]
[327101377,1715812245573,-906.41637835,0.00020809,2]
[327101379,1715812245583,-448.87998394,0.00020809,2]
[327101381,1715812245592,-1148.14078624,0.00020809,2]
[327101383,1715812245601,-154.86067302,0.00020809,2]
[327101385,1715812245611,-187.08694253,0.00020809,2]
[327101386,1715812245621,-372.31624743,0.00020809,2]
[327101388,1715812245630,-204.326748,0.00020809,2]
[327101390,1715812245639,-204.326748,0.00020809,2]
[327101392,1715812245648,-204.326748,0.00020809,2]
[327101394,1715812245657,-204.326748,0.00020809,2]
[327101395,1715812245666,-588.418411,0.00020809,2]
[327101397,1715812245675,-588.418411,0.00020809,2]
[327101399,1715812245684,-588.418411,0.00020809,2]
[327101401,1715812245693,-588.418411,0.00020809,2]
[327101403,1715812245702,-252.390007,0.00020809,2]
[327101405,1715812245712,-974.512319,0.00020809,2]
[327101407,1715812245721,-974.512319,0.00020809,2]
[327101408,1715812245731,-974.512319,0.00020809,2]
[327101410,1715812245741,-974.512319,0.00020809,2]
[327101412,1715812245750,-974.512319,0.00020809,2]
[327101414,1715812245759,-974.512319,0.00020809,2]
[327101416,1715812245768,-151.0,0.00020809,2]
[327101418,1715812245777,-151.0,0.00020809,2]